{"text_format":"2","workbook":"xlsx","n_sheets":4,"sheets":["Orientaciones generales ","Relación de gastos","TOTAL GENERAL DE GASTOS","Tablas de datos"],"not_rendered":{"charts":0,"images":3,"macros":0,"external_links":0,"defined_names":0,"comments":0,"pivot_tables":0},"unopened":[],"bounds":{"document_bytes":16777216,"sheet_cells":100000,"run_cost":"one","rows_first":2000,"rows_last":500,"rows_between":2000,"halvings":0,"cell_chars":16384,"cell_head_chars":4096},"cells_cut":0,"cells_raw":0,"read":"whole","date_system":"1900"}

{"sheet":"Orientaciones generales ","index":0,"n_rows":120,"n_cols":1,"rows_kept":120,"cut":false,"hidden":false,"merged":[[0,0,1,0]]}
[]
[]
["GUÍA RAPIDA PARA COMPLEMENTAR LA TABLA DE REPORTE DE GASTOS DETALLADOS - PATSYD"]
[]
["Información general"]
[]
["El propósito de esta guía rápida es orientar al beneficiario en la presentación del reporte de gastos para poder justificar la solicitud de pago de la subvención.    "]
[]
["De conformidad con el artículo 21.4 de la Orden TMA/370/2022, el informe de seguimiento de debe contener una relación clasificada de los gastos e inversiones de la \nactividad, con identificación del acreedor y del documento, su importe, fecha de emisión y, en su caso, fecha de pago."]
[]
["Hoja 1. RELACIÓN DE GASTOS POR ACTIVIDAD"]
[]
["Nombre de la actividad: Indique el nombre de la actividad a la que se ha imputado gasto durante el período de justificación del informe. El nombre dicha actividad debe ser el mismo que figura en el memoria técnica presentada en la solicitud de la subvención.  "]
[]
["Número de la actividad: Indique el número de la actividad a la que se ha imputado gasto durante el período de justificación del informe. El número de dicha actividad debe corresponder con el asignada a la actividad en el memoria técnica presentada en la solicitud de la subvención.   "]
[]
["Tipo de gasto: Se debe asignar a cada gasto incurrido una categoría según el menu desplegable: A.- personal; B.- equipos, materiales y suministros; C.- servicios; D.- viajes y dietas; E.- otros gastos directos.   "]
[]
["Beneficiario: Se debe indicar el nombre del beneficiario de la subvención que realizó el gasto. En caso de agrupaciones, se debe indicar el nombre de la respectiva entidad beneficiaria que efectuó el gasto.  "]
[]
["Nombre de la entidad pagadora: Debe indicar el nombre de la entidad que realizó el pago."]
[]
["NIF de la entidad pagadora: Debe indicar el número de identifcación fiscal de la entidad que realizó el pago."]
[]
["Nombre del perceptor: Debe indicar el nombre del proveedor que recibió el pago realizado."]
[]
["NIF del perceptor: Debe indicar el número de identifcación fiscal del proveedor que recibió el pago realizado."]
[]
["Concepto: Debe indicar una breve descripción de las carácterísticas del gasto. "]
[]
["Tipo de documento probatorio del gasto: Debe indicar el tipo de documento que acredita el gasto: una factura; nómina, recibí, ect. "]
[]
["Número del documento probatorio del gasto: Debe señalar el número o código identificativo del documento que acredita el gasto. "]
[]
["Fecha del documento probatorio del gasto: Debe indicar la fecha que figura en el documento acreditativo del gasto."]
[]
["Importe neto en documento probatario del gasto (sin IVA): Debe indicar la base imponible o importe líquido que se refleja en el documento de gasto.  "]
[]
["Importe IVA o similar en documento probatorio del gasto: Debe indicar el importe del impuesto indirecto que se refleja en el documento de gasto.   "]
[]
["Importe total en documento probatario del gasto: Debe indicar el importe total que refleja el documento de gasto; resultante de la sumatoria del importe neto más impuestos indirectos.     "]
[]
["Importe imputado al proyecto en documento probatorio del gasto: Debe indicar el importe total que, del importe neto del documento del gasto, se imputa al proyecto. NOTA IMPORTANTE: Se debe tener en cuenta que no se puede imputar gasto por concepto de impuestos indirectos (Gasto no elegible). "]
[]
["Intensidad de la Subvención (%): Intensidad bruta máxima de la ayuda que podrá concederse, según cada medida."]
[]
["GASTOS INDIRECTOS: Debe indicar, en su caso, el importe total por concepto de costes indirectos imputados a la subvención (máximo del 2,5% de la ayuda). "]
[]
["Línea de Actuación 1. Interoperabilidad ferroviaria"]
["M1: Sistema Europeo de Gestión del Tráfico Ferroviario (ERTMS) a bordo"]
["Intensidad Subvención: El porcentaje de financiación sobre los costes subvencionables será del 50%.   "]
[]
["M2.1: Acciones que eliminen las barreras para la interoperabilidad ferroviaria de conformidad con las Especificaciones Técnicas de Interoperabilidad (ETIs): Sistemas de reducción de ruido en material rodante"]
["Intensidad Subvención*: El porcentaje de financiación sobre los costes subvencionables será del 40%.   "]
[]
["M3. Innovación y desarrollo del eje de ancho variable en locomotoras."]
["Intensidad Subvención*: "]
["En cumplimiento del régimen de Ayudas de Estado, la intensidad máxima será del 50%, que podrán aumentarse hasta un máximo del 80 % de los costes subvencionables, como se indica a continuación:\na) 10% medianas empresas y 20% pequeñas empresas;\nb) 15% si se cumple alguna de las siguientes condiciones:\n▪ Que el proyecto implique una colaboración efectiva:\no Entre empresas, al menos una de las cuales sea una PYME, o se desarrolle en al menos dos Estados Miembros, o en un Estado Miembro y en una Parte Contratante en el Acuerdo sobre el Espacio Económico Europeo (EEE), y que ninguna empresa corra por sí sola con más del 70 % de los costes subvencionables, o\no Entre una empresa y uno o varios organismos de investigación y difusión de conocimientos, asumiendo estos como mínimo el 10 % de los costes subvencionables y teniendo derecho a publicar los resultados de su propia investigación.\n▪ Que los resultados del proyecto se difundan ampliamente por medio de conferencias, publicaciones, bases de libre acceso o programas informáticos gratuitos o de fuente abierta."]
[]
["Línea de Actuación 2. Fomento de la intermodalidad del transporte"]
["M4: Construcción, adaptación o mejora de cargaderos y terminales intermodales ferrocarril-carretera, y sus conexiones terrestres"]
["Intensidad Subvención*: "]
["▪ 40%\n▪ En el caso de que el déficit de financiación demostrado sea inferior a la subvención solicitada, ésta tendrá el valor del déficit"]
[]
["Línea de Actuación 3. Modernización de material ferroviario de mercancías"]
["M5: Acciones de apoyo a la renovación o adecuación de vagones para el transporte ferroviario de mercancías, incluido el necesario para el establecimiento de servicios de autopistas ferroviarias"]
["Intensidad Subvención*: "]
["▪ El porcentaje de financiación sobre los costes elegibles será del 50%\n▪ En el caso de que el déficit de financiación demostrado sea inferior a la subvención solicitada, ésta tendrá el valor del déficit"]
[]
["M6. Acciones de apoyo a la renovación o adecuación de material tractor ferroviario con otro material que utilice combustibles alternativos como el hidrógeno o la electricidad."]
["Intensidad Subvención*: "]
["▪ 40%\n▪ En el caso de que el déficit de financiación demostrado sea inferior a la subvención solicitada, ésta tendrá el valor del déficit.\nEl importe máximo de subvención será de 15.000.000 € por empresa y por proyecto, en el marco de esta medida en cumplimiento del régimen de Ayudas de Estado."]
[]
["Línea de Actuación 4. Transporte por carretera seguro, sostenible y conectado"]
["M7. Construcción y mejora de zonas de aparcamiento seguras para vehículos comerciales, así como la provisión de servicios de información."]
["Intensidad Subvención*: "]
["▪ 40%\n▪ En el caso de que el déficit de financiación demostrado sea inferior a la subvención solicitada, ésta tendrá el valor del déficit\n▪ En cumplimiento de los requisitos en materia de Ayudas de Estado en ningún caso la subvención excederá de la diferencia entre los costes subvencionables y el beneficio de explotación de la inversión.\nLos costes totales subvencionables no podrán superar los 20.000.000 € por proyecto, en el marco de esta medida en cumplimiento del régimen de Ayudas de Estado."]
[]
["M8. Servicios Inteligentes de Transporte para el sector de carreteras (ITS) en concesiones de autopistas de peaje y otros servicios relacionados con la seguridad y conservación de las carreteras."]
["Intensidad Subvención*: "]
["30% para obras e instalaciones\n▪ 50% para estudios\n▪ En el caso de que el déficit de financiación demostrado sea inferior a la subvención solicitada, ésta tendrá el valor del déficit\n"]
[]
["M9: Acciones de apoyo a la implantación de la infraestructura de reabastecimiento de combustibles alternativos para vehículos pesados en la red de carreteras."]
["Intensidad Subvención*: "]
["•40% para instalaciones de almacenamiento y suministro de hidrógeno renovable.\n• La subvención concedida a un beneficiario no excederá del 40% del presupuesto total de la medida en cumplimiento del régimen de Ayudas de Estado.\n• En el caso de que el déficit de financiación demostrado sea inferior a la subvención solicitada, ésta tendrá el valor del déficit"]
[]
["M10 Acciones de apoyo a la renovación o adecuación de medios y maquinaria para conseguir pavimentos sostenibles: disminución de huella de carbono y sonorreductores."]
["Intensidad Subvención*: "]
["▪ 40%\n▪ En el caso de que el déficit de financiación demostrado sea inferior a la subvención solicitada, ésta tendrá el valor del déficit"]
[]
["Línea de Actuación 5. Sostenibilidad del transporte marítimo y aéreo"]
["M11: Apoyo al despliegue de combustibles alternativos en Puertos y Aeropuertos."]
["Intensidad Subvención*: "]
["▪ 30% GNL\n▪ 40% Hidrógeno y electricidad\n▪ En el caso de que el déficit de financiación demostrado sea inferior a la subvención solicitada, ésta tendrá el valor del déficit.\nEl importe máximo de subvención será de 15.000.000 € por empresa y por proyecto en el marco de esta medida en cumplimiento del régimen de Ayudas de Estado."]
[]
["M12 Apoyo a la adopción de tecnologías propulsivas con energías alternativas en el sector marítimo."]
["Intensidad Subvención*: "]
["▪ 40%\n▪ En el caso de que el déficit de financiación demostrado sea inferior a la subvención solicitada, ésta tendrá el valor del déficit"]
[]
["Línea de Actuación 6. Digitalización del transporte"]
["M13 Proyectos para la digitalización de los servicios de transporte de viajeros y mercancías en el ámbito nacional."]
["Intensidad Subvención*:   El porcentaje de financiación sobre los costes subvencionables será del 40%. "]
[]
["*En aquellas medidas que necesiten presentar Análisis Coste-Beneficio la intensidad podría verse reducida en función de su resultado."]
[]
["Importe imputado a la subvención: Debe indicar el importe total que se imputa a la subvención respecto de los costes subvencionables. Dependerá de la intensidad de la subvención o del importe de ayuda unitario establecido para determinados equipos."]
[]
["Número del documento de pago: Debe señalar el número o código identificativo del documento que acredita el pago. "]
[]
["Fecha de pago: Debe indicar la fecha del cargo en cuenta de pago realizado, o fecha valor; no la fecha de orden de pago. "]
[]
["Forma de pago: Debe indicar la forma de pago: tranferencia; cheque nominativo; efectivo. En caso de remasa o pagos masivos, el beneficiario debe aportar informar del pago que permita la pista de auditoria suficiente para su identificación. "]
[]
["Observaciones: El beneficiario podrá indicar cualquier información aclaratoria sobre los datos reportados en la respectiva linea gasto o en torno a la documentación soporte aportada para su justificación.   "]
[]
["GASTOS INDIRECTOS: Debe indicar, en su caso, el importe total por concepto de costes indirectos imputados a la subvención (máximo del 2,5% de la ayuda). "]
[]
["Hoja 2. TOTAL GENERAL POR TIPOLÓGÍA DE GASTO Y ACTIVIDAD "]
[]
["La información presentada en esta hoja será calculada automática a partir de la datos que reporte el beneficiario en cada línea de gasto de la Hoja 1 \"Relación de gastos por actividad\". La Hoja 2 ofrece una visión general del total de los gastos incurridos por tipología de gastos así como una lectura agrupada de gastos totales incurridos por actividad según la tipología de gastos.  "]

{"sheet":"Relación de gastos","index":1,"n_rows":38,"n_cols":22,"rows_kept":38,"cut":false,"hidden":false,"merged":[[37,15,37,16],[36,0,36,21],[0,0,1,10],[3,0,3,5]]}
[]
[]
[]
["DESCRIPCIÓN DE LOS GASTOS POR ACTIVIDAD"]
[]
["ENTIDAD BENEFICIARIA:"]
["TÍTULO DEL PROYECTO:"]
["PERÍODO DE JUSTIFICACIÓN: "]
["NÚMERO DE EXPEDIENTE:"]
[]
[]
[]
["NOMBRE DE ACTIVIDAD","NÚMERO DE LA ACTIVIDAD ","TIPOLOGÍA DE GASTOS ","BENEFICIARIO \n(sólo en el caso de agrupaciones)","NOMBRE DE LA ENTIDAD \nPAGADORA","NIF DE LA ENTIDAD \nPAGADORA","NOMBRE DEL PERCEPTOR","NIF DEL PERCERTOR","CONCEPTO ","TIPO DE DOCUMENTO PROBATORIO DEL GASTO","NÚMERO DEL DOCUMENTO PROBATORIO DEL GASTO ","FECHA DE DOCUMENTO PROBATORIO DEL GASTO","IMPORTE NETO EN DOCUMENTO \nPROBATORIO DE GASTO (SIN IVA)","IMPORTE IVA EN DOCUMENTO \nPROBATORIO DEL GASTO","IMPORTE TOTAL EN DOCUMENTO PROBATORIO DEL GASTO","IMPORTE IMPUTADO AL PROYECTO (SIN IVA)  ","INTENSIDAD DE LA SUBVENCIÓN (%)","IMPORTE IMPUTADO A LA SUBVENCIÓN","NÚMERO DEL DOCUMENTO DEL PAGO","FECHA DE PAGO","FORMA DE PAGO","OBSERVACIONES"]
[]
[]
[]
[]
[{"$nulls":17},{"$f":"IF($O18=0,\"\",$O18)","v":""}]
[{"$nulls":17},""]
[{"$nulls":17},""]
[{"$nulls":17},""]
{"$rows_empty":16}
[{"$nulls":15},"GASTOS INDIRECTOS"]

{"sheet":"TOTAL GENERAL DE GASTOS","index":2,"n_rows":80,"n_cols":4,"rows_kept":80,"cut":false,"hidden":false,"merged":[[0,0,1,3],[3,0,3,3],[65,0,65,1],[72,0,72,1],[79,0,79,1],[30,0,30,1],[37,0,37,1],[44,0,44,1],[51,0,51,1],[58,0,58,1]]}
[]
[]
[]
["TOTAL GENERAL POR TIPOLÓGÍA DE GASTO Y ACTIVIDAD "]
[]
["ENTIDAD BENEFICIARIA:",{"$f":"IF('Relación de gastos'!B6=0,\"\",'Relación de gastos'!$B$6)","v":""}]
["TÍTULO DEL PROYECTO:",{"$f":"IF('Relación de gastos'!B7=0,\"\",'Relación de gastos'!$B$7)","v":""}]
["PERÍODO DE JUSTIFICACIÓN: ",{"$f":"IF('Relación de gastos'!B8=0,\"\",'Relación de gastos'!B8)","v":""}]
["NÚMERO DE EXPEDIENTE:",{"$f":"IF('Relación de gastos'!B9=0,\"\",'Relación de gastos'!B9)","v":""}]
[]
[]
[]
["TIPOLOGÍA DE GASTOS ","IMPORTE TOTAL IMPUTADO (sin IVA)  ","SUBVENCIÓN TOTAL IMPUTADA"]
["A. - Personal",{"$f":"C26+C33+C40+C47+C54+C61+C68+C75","v":0},0]
["B. - Equipos, materiales y suministros",0,0]
["C. - Servicios",0,0]
["D. - Viajes y dietas",0,0]
["E. - Otros gastos directos",0,0]
["TOTAL GASTOS DIRECTOS",{"$f":"SUM(B14:B18)","v":0},{"$f":"SUM(C14:C18)","v":0}]
["TOTAL GASTOS INDIRECTOS",null,{"$f":"'Relación de gastos'!$R$38","v":0}]
[null,null,{"$f":"C19+C20","v":0}]
[]
[]
[]
["NÚMERO DE LA ACTIVIDAD ","TIPOLOGÍA DE GASTOS ","IMPORTE TOTAL IMPUTADO (sin IVA)  ","SUBVENCIÓN TOTAL IMPUTADA  "]
[1,"A. - Personal",{"$f":"SUMIFS('Relación de gastos'!$P$14:$P$36,'Relación de gastos'!$B$14:$B$36,1,'Relación de gastos'!$C$14:$C$36,\"A. - Personal\")","v":0},{"$f":"SUMIFS('Relación de gastos'!$R$14:$R$36,'Relación de gastos'!$B$14:$B$36,1,'Relación de gastos'!$C$14:$C$36,\"A. - Personal\")","v":0}]
[1,"B. - Equipos, materiales y suministros",{"$f":"SUMIFS('Relación de gastos'!$P$14:$P$36,'Relación de gastos'!$B$14:$B$36,1,'Relación de gastos'!$C$14:$C$36,\"B. - Equipos, materiales y suministros\")","v":0},{"$f":"SUMIFS('Relación de gastos'!$R$14:$R$36,'Relación de gastos'!$B$14:$B$36,1,'Relación de gastos'!$C$14:$C$36,\"B. - Equipos, materiales y suministros\")","v":0}]
[1,"C. - Servicios",{"$f":"SUMIFS('Relación de gastos'!$P$14:$P$36,'Relación de gastos'!$B$14:$B$36,1,'Relación de gastos'!$C$14:$C$36,\"C. - Servicios\")","v":0},{"$f":"SUMIFS('Relación de gastos'!$R$14:$R$36,'Relación de gastos'!$B$14:$B$36,1,'Relación de gastos'!$C$14:$C$36,\"C. - Servicios\")","v":0}]
[1,"D. - Viajes y dietas",{"$f":"SUMIFS('Relación de gastos'!$P$14:$P$36,'Relación de gastos'!$B$14:$B$36,1,'Relación de gastos'!$C$14:$C$36,\"D. - Viajes y dietas\")","v":0},{"$f":"SUMIFS('Relación de gastos'!$R$14:$R$36,'Relación de gastos'!$B$14:$B$36,1,'Relación de gastos'!$C$14:$C$36,\"D. - Viajes y dietas\")","v":0}]
[1,"E. - Otros gastos directos",{"$f":"SUMIFS('Relación de gastos'!$P$14:$P$36,'Relación de gastos'!$B$14:$B$36,1,'Relación de gastos'!$C$14:$C$36,\"E. - Otros gastos directos\")","v":0},{"$f":"SUMIFS('Relación de gastos'!$R$14:$R$36,'Relación de gastos'!$B$14:$B$36,1,'Relación de gastos'!$C$14:$C$36,\"E. - Otros gastos directos\")","v":0}]
["ACTIVIDAD 1",null,{"$f":"SUM(C26:C30)","v":0},{"$f":"SUM(D26:D30)","v":0}]
["NÚMERO DE LA ACTIVIDAD ","TIPOLOGÍA DE GASTOS ","IMPORTE TOTAL IMPUTADO","SUBVENCIÓN TOTAL IMPUTADA  "]
[2,"A. - Personal",{"$f":"SUMIFS('Relación de gastos'!$P$14:$P$36,'Relación de gastos'!$B$14:$B$36,2,'Relación de gastos'!$C$14:$C$36,\"A. - Personal\")","v":0},{"$f":"SUMIFS('Relación de gastos'!$R$14:$R$36,'Relación de gastos'!$B$14:$B$36,2,'Relación de gastos'!$C$14:$C$36,\"A. - Personal\")","v":0}]
[2,"B. - Equipos, materiales y suministros",{"$f":"SUMIFS('Relación de gastos'!$P$14:$P$36,'Relación de gastos'!$B$14:$B$36,2,'Relación de gastos'!$C$14:$C$36,\"B. - Equipos, materiales y suministros\")","v":0},{"$f":"SUMIFS('Relación de gastos'!$R$14:$R$36,'Relación de gastos'!$B$14:$B$36,2,'Relación de gastos'!$C$14:$C$36,\"B. - Equipos, materiales y suministros\")","v":0}]
[2,"C. - Servicios",{"$f":"SUMIFS('Relación de gastos'!$P$14:$P$36,'Relación de gastos'!$B$14:$B$36,2,'Relación de gastos'!$C$14:$C$36,\"C. - Servicios\")","v":0},{"$f":"SUMIFS('Relación de gastos'!$R$14:$R$36,'Relación de gastos'!$B$14:$B$36,2,'Relación de gastos'!$C$14:$C$36,\"C. - Servicios\")","v":0}]
[2,"D. - Viajes y dietas",{"$f":"SUMIFS('Relación de gastos'!$P$14:$P$36,'Relación de gastos'!$B$14:$B$36,2,'Relación de gastos'!$C$14:$C$36,\"D. - Viajes y dietas\")","v":0},{"$f":"SUMIFS('Relación de gastos'!$R$14:$R$36,'Relación de gastos'!$B$14:$B$36,2,'Relación de gastos'!$C$14:$C$36,\"D. - Viajes y dietas\")","v":0}]
[2,"E. - Otros gastos directos",{"$f":"SUMIFS('Relación de gastos'!$P$14:$P$36,'Relación de gastos'!$B$14:$B$36,2,'Relación de gastos'!$C$14:$C$36,\"E. - Otros gastos directos\")","v":0},{"$f":"SUMIFS('Relación de gastos'!$R$14:$R$36,'Relación de gastos'!$B$14:$B$36,2,'Relación de gastos'!$C$14:$C$36,\"E. - Otros gastos directos\")","v":0}]
["ACTIVIDAD 2",null,{"$f":"SUM(C33:C37)","v":0},{"$f":"SUM(D33:D37)","v":0}]
["NÚMERO DE LA ACTIVIDAD ","TIPOLOGÍA DE GASTOS ","IMPORTE TOTAL IMPUTADO","SUBVENCIÓN TOTAL IMPUTADA  "]
[3,"A. - Personal",{"$f":"SUMIFS('Relación de gastos'!$P$14:$P$36,'Relación de gastos'!$B$14:$B$36,3,'Relación de gastos'!$C$14:$C$36,\"A. - Personal\")","v":0},{"$f":"SUMIFS('Relación de gastos'!$R$14:$R$36,'Relación de gastos'!$B$14:$B$36,3,'Relación de gastos'!$C$14:$C$36,\"A. - Personal\")","v":0}]
[3,"B. - Equipos, materiales y suministros",{"$f":"SUMIFS('Relación de gastos'!$P$14:$P$36,'Relación de gastos'!$B$14:$B$36,3,'Relación de gastos'!$C$14:$C$36,\"B. - Equipos, materiales y suministros\")","v":0},{"$f":"SUMIFS('Relación de gastos'!$R$14:$R$36,'Relación de gastos'!$B$14:$B$36,3,'Relación de gastos'!$C$14:$C$36,\"B. - Equipos, materiales y suministros\")","v":0}]
[3,"C. - Servicios",{"$f":"SUMIFS('Relación de gastos'!$P$14:$P$36,'Relación de gastos'!$B$14:$B$36,3,'Relación de gastos'!$C$14:$C$36,\"C. - Servicios\")","v":0},{"$f":"SUMIFS('Relación de gastos'!$R$14:$R$36,'Relación de gastos'!$B$14:$B$36,3,'Relación de gastos'!$C$14:$C$36,\"C. - Servicios\")","v":0}]
[3,"D. - Viajes y dietas",{"$f":"SUMIFS('Relación de gastos'!$P$14:$P$36,'Relación de gastos'!$B$14:$B$36,3,'Relación de gastos'!$C$14:$C$36,\"D. - Viajes y dietas\")","v":0},{"$f":"SUMIFS('Relación de gastos'!$R$14:$R$36,'Relación de gastos'!$B$14:$B$36,3,'Relación de gastos'!$C$14:$C$36,\"D. - Viajes y dietas\")","v":0}]
[3,"E. - Otros gastos directos",{"$f":"SUMIFS('Relación de gastos'!$P$14:$P$36,'Relación de gastos'!$B$14:$B$36,3,'Relación de gastos'!$C$14:$C$36,\"E. - Otros gastos directos\")","v":0},{"$f":"SUMIFS('Relación de gastos'!$R$14:$R$36,'Relación de gastos'!$B$14:$B$36,3,'Relación de gastos'!$C$14:$C$36,\"E. - Otros gastos directos\")","v":0}]
["ACTIVIDAD 3",null,{"$f":"SUM(C40:C44)","v":0},{"$f":"SUM(D40:D44)","v":0}]
["NÚMERO DE LA ACTIVIDAD ","TIPOLOGÍA DE GASTOS ","IMPORTE TOTAL IMPUTADO","SUBVENCIÓN TOTAL IMPUTADA  "]
[4,"A. - Personal",{"$f":"SUMIFS('Relación de gastos'!$P$14:$P$36,'Relación de gastos'!$B$14:$B$36,4,'Relación de gastos'!$C$14:$C$36,\"A. - Personal\")","v":0},{"$f":"SUMIFS('Relación de gastos'!$R$14:$R$36,'Relación de gastos'!$B$14:$B$36,4,'Relación de gastos'!$C$14:$C$36,\"A. - Personal\")","v":0}]
[4,"B. - Equipos, materiales y suministros",{"$f":"SUMIFS('Relación de gastos'!$P$14:$P$36,'Relación de gastos'!$B$14:$B$36,4,'Relación de gastos'!$C$14:$C$36,\"B. - Equipos, materiales y suministros\")","v":0},{"$f":"SUMIFS('Relación de gastos'!$R$14:$R$36,'Relación de gastos'!$B$14:$B$36,4,'Relación de gastos'!$C$14:$C$36,\"B. - Equipos, materiales y suministros\")","v":0}]
[4,"C. - Servicios",{"$f":"SUMIFS('Relación de gastos'!$P$14:$P$36,'Relación de gastos'!$B$14:$B$36,4,'Relación de gastos'!$C$14:$C$36,\"C. - Servicios\")","v":0},{"$f":"SUMIFS('Relación de gastos'!$R$14:$R$36,'Relación de gastos'!$B$14:$B$36,4,'Relación de gastos'!$C$14:$C$36,\"C. - Servicios\")","v":0}]
[4,"D. - Viajes y dietas",{"$f":"SUMIFS('Relación de gastos'!$P$14:$P$36,'Relación de gastos'!$B$14:$B$36,4,'Relación de gastos'!$C$14:$C$36,\"D. - Viajes y dietas\")","v":0},{"$f":"SUMIFS('Relación de gastos'!$R$14:$R$36,'Relación de gastos'!$B$14:$B$36,4,'Relación de gastos'!$C$14:$C$36,\"D. - Viajes y dietas\")","v":0}]
[4,"E. - Otros gastos directos",{"$f":"SUMIFS('Relación de gastos'!$P$14:$P$36,'Relación de gastos'!$B$14:$B$36,4,'Relación de gastos'!$C$14:$C$36,\"E. - Otros gastos directos\")","v":0},{"$f":"SUMIFS('Relación de gastos'!$R$14:$R$36,'Relación de gastos'!$B$14:$B$36,4,'Relación de gastos'!$C$14:$C$36,\"E. - Otros gastos directos\")","v":0}]
["ACTIVIDAD 4",null,{"$f":"SUM(C47:C51)","v":0},{"$f":"SUM(D47:D51)","v":0}]
["NÚMERO DE LA ACTIVIDAD ","TIPOLOGÍA DE GASTOS ","IMPORTE TOTAL IMPUTADO","SUBVENCIÓN TOTAL IMPUTADA  "]
[5,"A. - Personal",{"$f":"SUMIFS('Relación de gastos'!$P$14:$P$36,'Relación de gastos'!$B$14:$B$36,5,'Relación de gastos'!$C$14:$C$36,\"A. - Personal\")","v":0},{"$f":"SUMIFS('Relación de gastos'!$R$14:$R$36,'Relación de gastos'!$B$14:$B$36,5,'Relación de gastos'!$C$14:$C$36,\"A. - Personal\")","v":0}]
[5,"B. - Equipos, materiales y suministros",{"$f":"SUMIFS('Relación de gastos'!$P$14:$P$36,'Relación de gastos'!$B$14:$B$36,5,'Relación de gastos'!$C$14:$C$36,\"B. - Equipos, materiales y suministros\")","v":0},{"$f":"SUMIFS('Relación de gastos'!$R$14:$R$36,'Relación de gastos'!$B$14:$B$36,5,'Relación de gastos'!$C$14:$C$36,\"B. - Equipos, materiales y suministros\")","v":0}]
[5,"C. - Servicios",{"$f":"SUMIFS('Relación de gastos'!$P$14:$P$36,'Relación de gastos'!$B$14:$B$36,5,'Relación de gastos'!$C$14:$C$36,\"C. - Servicios\")","v":0},{"$f":"SUMIFS('Relación de gastos'!$R$14:$R$36,'Relación de gastos'!$B$14:$B$36,5,'Relación de gastos'!$C$14:$C$36,\"C. - Servicios\")","v":0}]
[5,"D. - Viajes y dietas",{"$f":"SUMIFS('Relación de gastos'!$P$14:$P$36,'Relación de gastos'!$B$14:$B$36,5,'Relación de gastos'!$C$14:$C$36,\"D. - Viajes y dietas\")","v":0},{"$f":"SUMIFS('Relación de gastos'!$R$14:$R$36,'Relación de gastos'!$B$14:$B$36,5,'Relación de gastos'!$C$14:$C$36,\"D. - Viajes y dietas\")","v":0}]
[5,"E. - Otros gastos directos",{"$f":"SUMIFS('Relación de gastos'!$P$14:$P$36,'Relación de gastos'!$B$14:$B$36,5,'Relación de gastos'!$C$14:$C$36,\"E. - Otros gastos directos\")","v":0},{"$f":"SUMIFS('Relación de gastos'!$R$14:$R$36,'Relación de gastos'!$B$14:$B$36,5,'Relación de gastos'!$C$14:$C$36,\"E. - Otros gastos directos\")","v":0}]
["ACTIVIDAD 5",null,{"$f":"SUM(C54:C58)","v":0},{"$f":"SUM(D54:D58)","v":0}]
["NÚMERO DE LA ACTIVIDAD ","TIPOLOGÍA DE GASTOS ","IMPORTE TOTAL IMPUTADO","SUBVENCIÓN TOTAL IMPUTADA  "]
[6,"A. - Personal",{"$f":"SUMIFS('Relación de gastos'!$P$14:$P$36,'Relación de gastos'!$B$14:$B$36,6,'Relación de gastos'!$C$14:$C$36,\"A. - Personal\")","v":0},{"$f":"SUMIFS('Relación de gastos'!$R$14:$R$36,'Relación de gastos'!$B$14:$B$36,6,'Relación de gastos'!$C$14:$C$36,\"A. - Personal\")","v":0}]
[6,"B. - Equipos, materiales y suministros",{"$f":"SUMIFS('Relación de gastos'!$P$14:$P$36,'Relación de gastos'!$B$14:$B$36,6,'Relación de gastos'!$C$14:$C$36,\"B. - Equipos, materiales y suministros\")","v":0},{"$f":"SUMIFS('Relación de gastos'!$R$14:$R$36,'Relación de gastos'!$B$14:$B$36,6,'Relación de gastos'!$C$14:$C$36,\"B. - Equipos, materiales y suministros\")","v":0}]
[6,"C. - Servicios",{"$f":"SUMIFS('Relación de gastos'!$P$14:$P$36,'Relación de gastos'!$B$14:$B$36,6,'Relación de gastos'!$C$14:$C$36,\"C. - Servicios\")","v":0},{"$f":"SUMIFS('Relación de gastos'!$R$14:$R$36,'Relación de gastos'!$B$14:$B$36,6,'Relación de gastos'!$C$14:$C$36,\"C. - Servicios\")","v":0}]
[6,"D. - Viajes y dietas",{"$f":"SUMIFS('Relación de gastos'!$P$14:$P$36,'Relación de gastos'!$B$14:$B$36,6,'Relación de gastos'!$C$14:$C$36,\"D. - Viajes y dietas\")","v":0},{"$f":"SUMIFS('Relación de gastos'!$R$14:$R$36,'Relación de gastos'!$B$14:$B$36,6,'Relación de gastos'!$C$14:$C$36,\"D. - Viajes y dietas\")","v":0}]
[6,"E. - Otros gastos directos",{"$f":"SUMIFS('Relación de gastos'!$P$14:$P$36,'Relación de gastos'!$B$14:$B$36,6,'Relación de gastos'!$C$14:$C$36,\"E. - Otros gastos directos\")","v":0},{"$f":"SUMIFS('Relación de gastos'!$R$14:$R$36,'Relación de gastos'!$B$14:$B$36,6,'Relación de gastos'!$C$14:$C$36,\"E. - Otros gastos directos\")","v":0}]
["ACTIVIDAD 6",null,{"$f":"SUM(C61:C65)","v":0},{"$f":"SUM(D61:D65)","v":0}]
["NÚMERO DE LA ACTIVIDAD ","TIPOLOGÍA DE GASTOS ","IMPORTE TOTAL IMPUTADO","SUBVENCIÓN TOTAL IMPUTADA  "]
[7,"A. - Personal",{"$f":"SUMIFS('Relación de gastos'!$P$14:$P$36,'Relación de gastos'!$B$14:$B$36,7,'Relación de gastos'!$C$14:$C$36,\"A. - Personal\")","v":0},{"$f":"SUMIFS('Relación de gastos'!$R$14:$R$36,'Relación de gastos'!$B$14:$B$36,7,'Relación de gastos'!$C$14:$C$36,\"A. - Personal\")","v":0}]
[7,"B. - Equipos, materiales y suministros",{"$f":"SUMIFS('Relación de gastos'!$P$14:$P$36,'Relación de gastos'!$B$14:$B$36,7,'Relación de gastos'!$C$14:$C$36,\"B. - Equipos, materiales y suministros\")","v":0},{"$f":"SUMIFS('Relación de gastos'!$R$14:$R$36,'Relación de gastos'!$B$14:$B$36,7,'Relación de gastos'!$C$14:$C$36,\"B. - Equipos, materiales y suministros\")","v":0}]
[7,"C. - Servicios",{"$f":"SUMIFS('Relación de gastos'!$P$14:$P$36,'Relación de gastos'!$B$14:$B$36,7,'Relación de gastos'!$C$14:$C$36,\"C. - Servicios\")","v":0},{"$f":"SUMIFS('Relación de gastos'!$R$14:$R$36,'Relación de gastos'!$B$14:$B$36,7,'Relación de gastos'!$C$14:$C$36,\"C. - Servicios\")","v":0}]
[7,"D. - Viajes y dietas",{"$f":"SUMIFS('Relación de gastos'!$P$14:$P$36,'Relación de gastos'!$B$14:$B$36,7,'Relación de gastos'!$C$14:$C$36,\"D. - Viajes y dietas\")","v":0},{"$f":"SUMIFS('Relación de gastos'!$R$14:$R$36,'Relación de gastos'!$B$14:$B$36,7,'Relación de gastos'!$C$14:$C$36,\"D. - Viajes y dietas\")","v":0}]
[7,"E. - Otros gastos directos",{"$f":"SUMIFS('Relación de gastos'!$P$14:$P$36,'Relación de gastos'!$B$14:$B$36,7,'Relación de gastos'!$C$14:$C$36,\"E. - Otros gastos directos\")","v":0},{"$f":"SUMIFS('Relación de gastos'!$R$14:$R$36,'Relación de gastos'!$B$14:$B$36,7,'Relación de gastos'!$C$14:$C$36,\"E. - Otros gastos directos\")","v":0}]
["ACTIVIDAD 7",null,{"$f":"SUM(C68:C72)","v":0},{"$f":"SUM(D68:D72)","v":0}]
["NÚMERO DE LA ACTIVIDAD ","TIPOLOGÍA DE GASTOS ","IMPORTE TOTAL IMPUTADO","SUBVENCIÓN TOTAL IMPUTADA  "]
[8,"A. - Personal",{"$f":"SUMIFS('Relación de gastos'!$P$14:$P$36,'Relación de gastos'!$B$14:$B$36,8,'Relación de gastos'!$C$14:$C$36,\"A. - Personal\")","v":0},{"$f":"SUMIFS('Relación de gastos'!$R$14:$R$36,'Relación de gastos'!$B$14:$B$36,8,'Relación de gastos'!$C$14:$C$36,\"A. - Personal\")","v":0}]
[8,"B. - Equipos, materiales y suministros",{"$f":"SUMIFS('Relación de gastos'!$P$14:$P$36,'Relación de gastos'!$B$14:$B$36,8,'Relación de gastos'!$C$14:$C$36,\"B. - Equipos, materiales y suministros\")","v":0},{"$f":"SUMIFS('Relación de gastos'!$R$14:$R$36,'Relación de gastos'!$B$14:$B$36,8,'Relación de gastos'!$C$14:$C$36,\"B. - Equipos, materiales y suministros\")","v":0}]
[8,"C. - Servicios",{"$f":"SUMIFS('Relación de gastos'!$P$14:$P$36,'Relación de gastos'!$B$14:$B$36,8,'Relación de gastos'!$C$14:$C$36,\"C. - Servicios\")","v":0},{"$f":"SUMIFS('Relación de gastos'!$R$14:$R$36,'Relación de gastos'!$B$14:$B$36,8,'Relación de gastos'!$C$14:$C$36,\"C. - Servicios\")","v":0}]
[8,"D. - Viajes y dietas",{"$f":"SUMIFS('Relación de gastos'!$P$14:$P$36,'Relación de gastos'!$B$14:$B$36,8,'Relación de gastos'!$C$14:$C$36,\"D. - Viajes y dietas\")","v":0},{"$f":"SUMIFS('Relación de gastos'!$R$14:$R$36,'Relación de gastos'!$B$14:$B$36,8,'Relación de gastos'!$C$14:$C$36,\"D. - Viajes y dietas\")","v":0}]
[8,"E. - Otros gastos directos",{"$f":"SUMIFS('Relación de gastos'!$P$14:$P$36,'Relación de gastos'!$B$14:$B$36,8,'Relación de gastos'!$C$14:$C$36,\"E. - Otros gastos directos\")","v":0},{"$f":"SUMIFS('Relación de gastos'!$R$14:$R$36,'Relación de gastos'!$B$14:$B$36,8,'Relación de gastos'!$C$14:$C$36,\"E. - Otros gastos directos\")","v":0}]
["ACTIVIDAD 8",null,{"$f":"SUM(C75:C79)","v":0},{"$f":"SUM(D75:D79)","v":0}]

{"sheet":"Tablas de datos","index":3,"n_rows":12,"n_cols":4,"rows_kept":12,"cut":false,"hidden":true,"merged":[]}
[]
[]
[]
[null,"NÚMERO DE LA ACTIVIDAD ",null,"TIPOLOGÍA DE GASTOS "]
[null,1,null,"A. - Personal"]
[null,2,null,"B. - Equipos, materiales y suministros"]
[null,3,null,"C. - Servicios"]
[null,4,null,"D. - Viajes y dietas"]
[null,5,null,"E. - Otros gastos directos"]
[null,6]
[null,7]
[null,8]